lending/lending_fUSD_20250425
["ID","MTS","AMOUNT","RATE_DAILY","PERIOD"]
[358918704,1745545224702,-533.3,0.00050958,30]
[358918705,1745545224742,-500.0,0.00050958,30]
[358918706,1745545224781,-500.0,0.00050958,30]
[358918707,1745545224820,-500.0,0.00050958,30]
[358918708,1745545224859,-1636.56,0.00050958,30]
[358918709,1745545224899,-500.0,0.00050958,30]
[358918710,1745545224939,-500.0,0.00050958,30]
[358918711,1745545224979,-500.0,0.00050958,30]
[358918712,1745545225021,-236.86628794,0.00050958,30]
[358918713,1745545225061,-686.42,0.00050958,30]
[358918714,1745545225103,-500.0,0.00050958,30]
[358918715,1745545225144,-500.0,0.00050958,30]
[358918716,1745545225189,-500.0,0.00050958,30]
[358918717,1745545225229,-300.0,0.00050958,30]
[358918718,1745545225271,-500.0,0.00050958,30]
[358918719,1745545225310,-607.09,0.00050958,30]
[358918720,1745545225348,-503.18055516,0.00050958,30]
[358918721,1745545225386,-1527.68,0.00050958,30]
[358918722,1745545225423,-500.0,0.00050958,30]
[358918723,1745545225464,-1591.81,0.00050958,30]
[358918724,1745545225505,-575.38,0.00050958,30]
[358918725,1745545225546,-500.0,0.00050958,30]
[358918726,1745545225585,-500.0,0.00050958,30]
[358918727,1745545225624,-500.0,0.00050958,30]
[358918728,1745545225663,-500.0,0.00050958,30]
[358918729,1745545225701,-500.0,0.00050958,30]
[358918730,1745545225741,-500.0,0.00050958,30]
[358918731,1745545225781,-1012.07,0.00050958,30]
[358918732,1745545226028,-500.0,0.00050958,30]
[358918733,1745545226071,-1098.37,0.00050958,30]
[358918734,1745545226112,-541.28,0.00050958,30]
[358918735,1745545226154,-1031.74,0.00050958,30]
[358918736,1745545226195,-1116.42,0.00050958,30]
[358918737,1745545226236,-546.69,0.00050958,30]
[358918738,1745545226275,-500.0,0.00050958,30]
[358918739,1745545226314,-500.0,0.00050958,30]
[358918740,1745545226356,-500.0,0.00050958,30]
[358918741,1745545226397,-500.0,0.00050958,30]
[358918742,1745545226437,-500.0,0.00050958,30]
[358918743,1745545226477,-500.0,0.00050958,30]
[358918744,1745545226520,-500.0,0.00050958,30]
[358918745,1745545226565,-1901.47,0.00050958,30]
[358918746,1745545226607,-592.69090878,0.00050958,30]
[358918747,1745545226650,-500.0,0.00050958,30]
[358918748,1745545226690,-500.0,0.00050958,30]
[358918749,1745545226730,-301.8,0.0005096,30]
[358918750,1745545226774,-50000.0,0.00051,51]
[358918751,1745545226813,-1800.0,0.00051,52]
[358918752,1745545226859,-1000000.0,0.00051,120]
[358918753,1745545226901,-179.31425334,0.00051,60]
[358918754,1745545226940,-200.0,0.00051,93]
[358918755,1745545226981,-200.0,0.00051,93]
[358918756,1745545227021,-5512.38004543,0.00051,120]
[358918757,1745545227061,-4602.26389764,0.00051,120]
[358918758,1745545227107,-200.0,0.00051,93]
[358918759,1745545227147,-300.0,0.00051006,30]
[358918760,1745545227189,-16105.44,0.000512,30]
[358918761,1745545227230,-1132.194193,0.00051232,30]
[358918762,1745545227270,-9063.631094,0.00051232,30]
[358918763,1745545227311,-1167.008109,0.00051232,30]
[358918764,1745545227350,-500.0,0.00051232,30]
[358918765,1745545227391,-500.0,0.00051232,30]
[358918766,1745545227430,-500.0,0.00051232,30]
[358918767,1745545227470,-500.0,0.00051232,30]
[358918768,1745545227513,-500.0,0.00051232,30]
[358918769,1745545227554,-1160.03,0.00051232,30]
[358918770,1745545227594,-500.0,0.00051232,30]
[358918771,1745545227632,-500.0,0.00051232,30]
[358918772,1745545227671,-868.05,0.00051232,30]
[358918773,1745545227710,-500.0,0.00051232,30]
[358918774,1745545227750,-1226.82,0.00051232,30]
[358918775,1745545227792,-1538.93,0.00051232,30]
[358918776,1745545227841,-702.4,0.00051232,30]
[358918777,1745545227889,-500.24,0.00051232,30]
[358918778,1745545227930,-500.0,0.00051232,30]
[358918779,1745545227971,-848.12,0.00051232,30]
[358918780,1745545228011,-500.0,0.00051232,30]
[358918781,1745545228053,-582.42,0.00051232,30]
[358918782,1745545228093,-581.75,0.00051232,30]
[358918783,1745545228132,-500.0,0.00051232,30]
[358918784,1745545228172,-500.0,0.00051232,30]
[358918785,1745545228210,-500.0,0.00051232,30]
[358918786,1745545228249,-500.0,0.00051232,30]
[358918787,1745545228286,-500.0,0.00051232,30]
[358918788,1745545228323,-500.0,0.00051232,30]
[358918789,1745545228362,-522.07,0.00051232,30]
[358918790,1745545228401,-523.01,0.00051232,30]
[358918791,1745545228440,-538.77,0.00051232,30]
[358918792,1745545228480,-644.39,0.00051232,30]
[358918793,1745545228522,-543.02,0.00051232,30]
[358918794,1745545228563,-500.0,0.00051232,30]
[358918795,1745545228611,-500.0,0.00051232,30]
[358918796,1745545228654,-504.91,0.00051232,30]
[358918797,1745545228695,-649.75,0.00051232,30]
[358918798,1745545228737,-634.13,0.00051232,30]
[358918799,1745545228778,-500.0,0.00051232,30]
[358918800,1745545228819,-917.14,0.00051232,30]
[358918801,1745545228861,-505.51,0.00051232,30]
[358918802,1745545228902,-606.78,0.00051232,30]
[358918803,1745545228940,-500.0,0.00051232,30]
[358918804,1745545228977,-359.148414,0.00051232,30]
[358918805,1745545229015,-500.0,0.00051232,30]
[358918806,1745545229053,-500.0,0.00051232,30]
[358918807,1745545229090,-595.29,0.00051232,30]
[358918808,1745545229126,-792.47,0.00051232,30]
[358918809,1745545229164,-500.0,0.00051232,30]
[358918810,1745545229201,-500.0,0.00051232,30]
[358918811,1745545229240,-500.0,0.00051232,30]
[358918812,1745545229277,-754.49,0.00051232,30]
[358918813,1745545229316,-543.78,0.00051232,30]
[358918814,1745545229359,-500.0,0.00051232,30]
[358918815,1745545229398,-619.56,0.00051232,30]
[358918816,1745545229437,-540.28,0.00051232,30]
[358918817,1745545229475,-544.0,0.00051232,30]
[358918818,1745545229514,-500.0,0.00051232,30]
[358918819,1745545229553,-500.0,0.00051232,30]
[358918820,1745545229591,-537.72,0.00051232,30]
[358918821,1745545229629,-500.0,0.00051232,30]
[358918822,1745545229667,-500.0,0.00051232,30]
[358918823,1745545229706,-500.0,0.00051232,30]
[358918824,1745545229744,-500.0,0.00051232,30]
[358918825,1745545229782,-686.33,0.00051232,30]
[358918826,1745545229821,-500.0,0.00051232,30]
[358918827,1745545229861,-569.6,0.00051232,30]
[358918828,1745545229902,-1556.23,0.00051232,30]
[358918829,1745545229943,-500.0,0.00051232,30]
[358918830,1745545229985,-500.0,0.00051232,30]
[358918831,1745545230025,-500.0,0.00051232,30]
[358918832,1745545230064,-500.0,0.00051232,30]
[358918833,1745545230111,-500.0,0.00051232,30]
[358918834,1745545230153,-1417.1,0.00051232,30]
[358918835,1745545230194,-500.0,0.00051232,30]
[358918836,1745545230542,-500.0,0.00051232,30]
[358918837,1745545230587,-640.19,0.00051232,30]
[358918838,1745545230631,-500.0,0.00051232,30]
[358918839,1745545230674,-500.0,0.00051232,30]
[358918840,1745545230716,-400.19500537,0.00051232,30]
[358918841,1745545230757,-1349.12,0.00051232,30]
[358918842,1745545230798,-1073.85,0.00051232,30]
[358918843,1745545230837,-500.0,0.00051232,30]
[358918844,1745545230880,-500.0,0.00051232,30]
[358918845,1745545230920,-500.0,0.00051232,30]
[358918846,1745545230971,-500.0,0.00051232,30]
[358918847,1745545231016,-500.0,0.00051232,30]
[358918848,1745545231057,-542.53,0.00051232,30]
[358918849,1745545231097,-1692.22,0.00051232,30]
[358918850,1745545231137,-500.0,0.00051232,30]
[358918851,1745545231175,-896.35,0.00051232,30]
[358918852,1745545231217,-500.0,0.00051232,30]
[358918853,1745545231255,-500.0,0.00051232,30]
[358918854,1745545231295,-500.0,0.00051232,30]
[358918855,1745545231334,-500.0,0.00051232,30]
[358918856,1745545231372,-500.0,0.00051232,30]
[358918857,1745545231413,-500.0,0.00051232,30]
[358918858,1745545231454,-500.0,0.00051232,30]
[358918859,1745545231495,-305.02505227,0.00051232,30]
[358918860,1745545231534,-994.55,0.00051232,30]
[358918861,1745545231573,-500.0,0.00051232,30]
[358918862,1745545231612,-500.0,0.00051232,30]
[358918863,1745545231650,-500.0,0.00051232,30]
[358918864,1745545231690,-542.37,0.00051232,30]
[358918865,1745545231739,-500.0,0.00051232,30]
[358918866,1745545231782,-255.90240481,0.00051232,30]
[358918867,1745545231823,-500.0,0.00051232,30]
[358918868,1745545231865,-546.08,0.00051232,30]
[358918869,1745545231906,-500.0,0.00051232,30]
[358918870,1745545231945,-2439.89,0.00051232,30]
[358918871,1745545231986,-500.0,0.00051232,30]
[358918872,1745545232027,-500.0,0.00051232,30]
[358918873,1745545232067,-500.0,0.00051232,30]
[358918874,1745545232106,-500.0,0.00051232,30]
[358918875,1745545232147,-584.43,0.00051232,30]
[358918876,1745545232189,-500.0,0.00051232,30]
[358918877,1745545232232,-939.8,0.00051232,30]
[358918878,1745545232275,-2036.8,0.00051232,30]
[358918879,1745545232318,-500.0,0.00051232,30]
[358918880,1745545232360,-500.0,0.00051232,30]
[358918881,1745545232402,-517.24,0.00051232,30]
[358918882,1745545232444,-500.0,0.00051232,30]
[358918883,1745545232486,-500.0,0.00051232,30]
[358918884,1745545232528,-566.72,0.00051232,30]
[358918885,1745545232570,-500.0,0.00051232,30]
[358918886,1745545232612,-221.8450729,0.00051232,30]
[358918887,1745545232654,-1510.65,0.00051232,30]
[358918888,1745545232695,-1008.08,0.00051232,30]
[358918889,1745545232735,-500.0,0.00051232,30]
[358918890,1745545232774,-1011.43,0.00051232,30]
[358918891,1745545232811,-500.0,0.00051232,30]
[358918892,1745545232854,-730.49,0.00051232,30]
[358918893,1745545232895,-500.0,0.00051232,30]
[358918894,1745545232934,-500.0,0.00051232,30]
[358918895,1745545232972,-528.27,0.00051232,30]
[358918896,1745545233012,-769.43,0.00051232,30]
[358918897,1745545233054,-500.0,0.00051232,30]
[358918898,1745545233096,-694.5,0.00051232,30]
[358918899,1745545233139,-500.0,0.00051232,30]
[358918900,1745545233182,-500.0,0.00051232,30]
[358918901,1745545233228,-858.57,0.00051232,30]
[358918902,1745545233275,-500.0,0.00051232,30]
[358918903,1745545233319,-763.88,0.00051232,30]
[358918904,1745545233364,-727.33,0.00051232,30]
[358918905,1745545233409,-875.49,0.00051232,120]
[358918906,1745545233454,-500.0,0.00051232,30]
[358918907,1745545233500,-500.0,0.00051232,30]
[358918908,1745545233544,-196.94948704,0.00051232,30]
[358918909,1745545233588,-529.60667869,0.00051232,30]
[358918910,1745545233633,-500.0,0.00051232,30]
[358918911,1745545233678,-719.69,0.00051232,30]
[358918912,1745545233723,-742.58,0.00051232,30]
[358918913,1745545233769,-500.0,0.00051232,30]
[358918914,1745545233815,-695.81,0.00051232,30]
[358918915,1745545233862,-500.0,0.00051232,30]
[358918916,1745545233907,-500.0,0.00051232,30]
[358918917,1745545233951,-500.0,0.00051232,30]
[358918918,1745545233994,-663.3,0.00051232,30]
[358918919,1745545234037,-618.78,0.00051232,30]
[358918920,1745545234080,-500.0,0.00051232,30]
[358918921,1745545234124,-2108.6,0.00051232,30]
[358918922,1745545234168,-1442.41,0.00051232,30]
[358918923,1745545234211,-599.18,0.00051232,30]
[358918924,1745545234254,-3086.13,0.00051232,30]
[358918925,1745545234294,-500.0,0.00051232,30]
[358918926,1745545234334,-1593.79,0.00051232,30]
[358918927,1745545234374,-500.0,0.00051232,30]
[358918928,1745545234415,-795.15,0.00051232,30]
[358918929,1745545234457,-522.13,0.00051232,30]
[358918930,1745545234498,-500.0,0.00051232,30]
[358918931,1745545234537,-500.0,0.00051232,30]
[358918932,1745545234578,-500.0,0.00051232,30]
[358918933,1745545234618,-1268.35,0.00051232,30]
[358918934,1745545234661,-1107.8,0.00051232,30]
[358918935,1745545234705,-500.0,0.00051232,30]
[358918936,1745545234749,-879.02,0.00051232,30]
[358918937,1745545234791,-500.0,0.00051232,30]
[358918938,1745545234839,-500.0,0.00051232,30]
[358918939,1745545234883,-500.0,0.00051232,30]
[358918940,1745545235151,-858.84,0.00051232,30]
[358918941,1745545235196,-765.14,0.00051232,30]
[358918942,1745545235238,-500.0,0.00051232,30]
[358918943,1745545235281,-500.0,0.00051232,30]
[358918944,1745545235324,-1773.32,0.00051232,30]
[358918945,1745545235368,-1111.7,0.00051232,30]
[358918946,1745545235412,-1976.47,0.00051232,30]
[358918947,1745545235454,-500.0,0.00051232,30]
[358918948,1745545235497,-509.56,0.00051232,30]
[358918949,1745545235541,-500.0,0.00051232,30]
[358918950,1745545235582,-412.88087912,0.00051232,30]
[358918951,1745545235623,-1140.87,0.00051232,30]
[358918952,1745545235667,-500.0,0.00051232,30]
[358918953,1745545235711,-871.81,0.00051232,30]
[358918954,1745545235755,-657.75,0.00051232,30]
[358918955,1745545235799,-500.0,0.00051232,30]
[358918956,1745545235840,-1613.27,0.00051232,30]
[358918957,1745545235888,-415.51,0.00051232,30]
[358918958,1745545235932,-500.0,0.00051232,30]
[358918959,1745545235973,-942.33,0.00051232,30]
[358918960,1745545236013,-413.15149414,0.00051232,30]
[358918961,1745545236054,-1476.33,0.00051232,30]
[358918962,1745545236097,-500.0,0.00051232,30]
[358918963,1745545236139,-1855.1,0.00051232,30]
[358918964,1745545236191,-500.0,0.00051232,30]
[358918965,1745545236232,-1456.2,0.00051232,30]
[358918966,1745545236274,-350.5050148,0.00051232,30]
[358918967,1745545236315,-500.0,0.00051232,30]
[358918968,1745545236355,-827.14,0.00051232,30]
[358918969,1745545236394,-500.0,0.00051232,30]
[358918970,1745545236438,-500.0,0.00051232,30]
[358918971,1745545236482,-500.0,0.00051232,30]
[358918972,1745545236531,-792.6,0.00051232,30]
[358918973,1745545236577,-500.0,0.00051232,30]
[358918974,1745545236621,-1103.01,0.00051232,30]
[358918975,1745545236665,-546.36,0.00051232,30]
[358918976,1745545236707,-500.0,0.00051232,30]
[358918977,1745545236751,-1012.63,0.00051232,30]
[358918978,1745545236793,-500.0,0.00051232,30]
[358918979,1745545236833,-500.0,0.00051232,30]
[358918980,1745545236873,-500.0,0.00051232,30]
[358918981,1745545236912,-500.0,0.00051232,30]
[358918982,1745545236951,-565.76955078,0.00051232,30]
[358918983,1745545236990,-500.0,0.00051232,30]
[358918984,1745545237029,-1616.8,0.00051232,30]
[358918985,1745545237069,-2124.79,0.00051232,30]
[358918986,1745545237108,-500.0,0.00051232,30]
[358918987,1745545237147,-620.23,0.00051232,30]
[358918988,1745545237186,-781.78,0.00051232,30]
[358918989,1745545237226,-802.61,0.00051232,30]
[358918990,1745545237268,-500.0,0.00051232,30]
[358918991,1745545237307,-500.0,0.00051232,30]
[358918992,1745545237347,-515.47,0.00051232,30]
[358918993,1745545237386,-990.31,0.00051232,30]
[358918994,1745545237424,-610.47,0.00051232,30]
[358918995,1745545237462,-2070.09,0.00051232,30]
[358918996,1745545237502,-500.0,0.00051232,30]
[358918997,1745545237542,-1324.47,0.00051232,30]
[358918998,1745545237582,-500.0,0.00051232,30]
[358918999,1745545237621,-500.0,0.00051232,30]
[358919000,1745545237660,-500.0,0.00051232,30]
[358919001,1745545237698,-350.0,0.00051232,30]
[358919002,1745545237738,-500.0,0.00051232,30]
[358919003,1745545237779,-500.0,0.00051232,30]
[358919004,1745545237819,-1042.75,0.00051232,30]
[358919005,1745545237860,-755.73,0.00051232,30]
[358919006,1745545237902,-1232.59,0.00051232,30]
[358919007,1745545237940,-500.0,0.00051232,30]
[358919008,1745545237977,-767.48,0.00051232,30]
[358919009,1745545238015,-500.0,0.00051232,30]
[358919010,1745545238055,-500.0,0.00051232,30]
[358919011,1745545238093,-2907.59,0.00051232,30]
[358919012,1745545238129,-895.82,0.00051232,30]
[358919013,1745545238167,-2590.97,0.00051232,30]
[358919014,1745545238206,-500.0,0.00051232,30]
[358919015,1745545238244,-1122.52,0.00051232,30]
[358919016,1745545238282,-554.82337981,0.00051232,30]
[358919017,1745545238318,-543.24,0.00051232,30]
[358919018,1745545238355,-500.0,0.00051232,30]
[358919019,1745545238393,-500.84,0.00051232,30]
[358919020,1745545238431,-500.0,0.00051232,30]
[358919021,1745545238470,-901.52,0.00051232,30]
[358919022,1745545238513,-644.62,0.00051232,30]
[358919023,1745545238556,-1008.41,0.00051232,30]
[358919024,1745545238596,-1503.08,0.00051232,30]
[358919025,1745545238638,-500.0,0.00051232,30]
[358919026,1745545238679,-1147.58,0.00051232,30]
[358919027,1745545238722,-1065.37,0.00051232,30]
[358919028,1745545238763,-4526.86,0.00051232,30]
[358919029,1745545238804,-500.0,0.00051232,30]
[358919030,1745545238845,-500.0,0.00051232,30]
[358919031,1745545238887,-500.0,0.00051232,30]
[358919032,1745545238928,-500.0,0.00051232,30]
[358919033,1745545238970,-500.0,0.00051232,30]
[358919034,1745545239008,-593.9,0.00051232,30]
[358919035,1745545239047,-500.0,0.00051232,30]
[358919036,1745545239084,-814.96,0.00051232,30]
[358919037,1745545239125,-158.92412787,0.00051232,30]
[358919038,1745545239167,-500.0,0.00051232,30]
[358919039,1745545239210,-3013.74,0.00051232,30]
[358919040,1745545239252,-500.0,0.00051232,30]
[358919041,1745545239293,-505.96,0.00051232,30]
[358919042,1745545239335,-802.86,0.00051232,30]
[358919043,1745545239378,-500.0,0.00051232,30]
[358919044,1745545239612,-831.63,0.00051232,30]
[358919045,1745545239654,-500.0,0.00051232,30]
[358919046,1745545239695,-500.0,0.00051232,30]
[358919047,1745545239735,-500.0,0.00051232,30]
[358919048,1745545239775,-1709.19,0.00051232,30]
[358919049,1745545239815,-500.0,0.00051232,30]
[358919050,1745545239855,-641.42,0.00051232,30]
[358919051,1745545239898,-500.0,0.00051232,30]
[358919052,1745545239941,-500.0,0.00051232,30]
[358919053,1745545239983,-661.96,0.00051232,30]
[358919054,1745545240022,-500.0,0.00051232,30]
[358919055,1745545240062,-500.0,0.00051232,30]
[358919056,1745545240105,-500.0,0.00051232,30]
[358919057,1745545240146,-500.0,0.00051232,30]
[358919058,1745545240187,-612.26,0.00051232,30]
[358919059,1745545240227,-500.0,0.00051232,30]
[358919060,1745545240265,-500.0,0.00051232,30]
[358919061,1745545240305,-197.88116038,0.00051232,30]
[358919062,1745545240343,-1976.56,0.00051232,30]
[358919063,1745545240380,-653.33,0.00051232,30]
[358919064,1745545240419,-500.0,0.00051232,30]
[358919065,1745545240457,-596.77,0.00051232,30]
[358919066,1745545240495,-500.0,0.00051232,30]
[358919067,1745545240534,-1112.33,0.00051232,30]
[358919068,1745545240575,-500.0,0.00051232,30]
[358919069,1745545240613,-841.68,0.00051232,30]
[358919070,1745545240654,-823.66,0.00051232,30]
[358919071,1745545240692,-500.0,0.00051232,30]
[358919072,1745545240731,-500.0,0.00051232,30]
[358919073,1745545240770,-500.0,0.00051232,30]
[358919074,1745545240810,-1808.75,0.00051232,30]
[358919075,1745545240851,-500.0,0.00051232,30]
[358919076,1745545240896,-1821.84,0.00051232,30]
[358919077,1745545240938,-1313.12,0.00051232,30]
[358919078,1745545240980,-500.0,0.00051232,30]
[358919079,1745545241019,-500.0,0.00051232,30]
[358919080,1745545241059,-672.15,0.00051232,30]
[358919081,1745545241099,-1880.56,0.00051232,30]
[358919082,1745545241139,-893.18,0.00051232,30]
[358919083,1745545241180,-500.0,0.00051232,30]
[358919084,1745545241221,-500.0,0.00051232,30]
[358919085,1745545241261,-500.0,0.00051232,30]
[358919086,1745545241300,-500.0,0.00051232,30]
[358919087,1745545241339,-500.0,0.00051232,30]
[358919088,1745545241380,-500.0,0.00051232,30]
[358919089,1745545241419,-500.0,0.00051232,30]
[358919090,1745545241456,-500.0,0.00051232,30]
[358919091,1745545241493,-500.0,0.00051232,30]
[358919092,1745545241529,-500.0,0.00051232,30]
[358919093,1745545241566,-1073.32,0.00051232,30]
[358919094,1745545241603,-1524.36,0.00051232,30]
[358919095,1745545241642,-500.0,0.00051232,30]
[358919096,1745545241681,-1015.49,0.00051232,30]
[358919097,1745545241721,-557.66,0.00051232,30]
[358919098,1745545241760,-500.0,0.00051232,30]
[358919099,1745545241797,-500.0,0.00051232,30]
[358919100,1745545241837,-562.31419431,0.00051232,30]
[358919101,1745545413835,-157.68,0.0004,30]
[358919102,1745545413879,-2993.74,0.00041095,120]
[358919103,1745545413927,-2993.74,0.00042465,120]
[358919104,1745545413980,-179.0,0.00043151,90]
[358919105,1745545414019,-2993.74,0.00043835,120]
[358919106,1745545414058,-572.0,0.00045,90]
[358919107,1745545414096,-2993.74,0.00045205,120]
[358919108,1745545414136,-572.0,0.00045685,90]
[358919109,1745545414174,-151.0,0.00045884,30]
[358919110,1745545414209,-151.0,0.00045884,30]
[358919111,1745545414245,-151.0,0.00045884,30]
[358919112,1745545414281,-151.0,0.00045884,30]
[358919113,1745545414316,-151.0,0.00045884,30]
[358919114,1745545414352,-235.33061585,0.00045884,30]
[358919115,1745545414401,-157.68,0.00045884,120]
[358919116,1745545414442,-1851.79,0.000459,60]
[358919117,1745545414491,-2993.74,0.00046575,120]
[358919118,1745545414532,-1851.79,0.000466,60]
[358919119,1745545414573,-1851.79,0.000474,60]
[358919120,1745545414611,-572.0,0.00047682,90]
[358919121,1745545414651,-2993.74,0.00047945,120]
[358919122,1745545414692,-1851.79,0.00048,60]
[358919123,1745545414731,-300.0,0.000482,30]
[358919124,1745545414770,-1851.79,0.000487,60]
[358919125,1745545414808,-1522.37256207,0.00049,120]
[358919126,1745545414847,-1851.79,0.000493,60]
[358919127,1745545414884,-172.4,0.000493,48]
[358919128,1745545414923,-207.3,0.000493,48]
[358919129,1745545414963,-1757.16,0.00049315,30]
[358919130,1745545415001,-500.0,0.00049315,30]
[358919131,1745545415039,-500.0,0.00049315,30]
[358919132,1745545415079,-500.0,0.00049315,30]
[358919133,1745545415117,-1673.18,0.00049315,30]
[358919134,1745545415155,-500.0,0.00049315,30]
[358919135,1745545415196,-797.02,0.00049315,30]
[358919136,1745545415456,-1168.97,0.00049315,30]
[358919137,1745545415499,-1038.01,0.00049315,30]
[358919138,1745545415538,-690.29,0.00049315,30]
[358919139,1745545415577,-1114.87,0.00049315,30]
[358919140,1745545415614,-514.81597838,0.00049315,30]
[358919141,1745545415652,-500.0,0.00049315,30]
[358919142,1745545415691,-500.0,0.00049315,30]
[358919143,1745545415729,-717.48,0.00049315,30]
[358919144,1745545415764,-1062.7,0.00049315,30]
[358919145,1745545415803,-1633.77,0.00049315,30]
[358919146,1745545415841,-500.0,0.00049315,30]
[358919147,1745545415878,-1135.12,0.00049315,30]
[358919148,1745545415914,-1135.12,0.00049315,30]
[358919149,1745545415950,-1248.52,0.00049315,30]
[358919150,1745545415985,-1135.12,0.00049315,30]
[358919151,1745545416023,-633.48,0.00049315,30]
[358919152,1745545416058,-1135.12,0.00049315,30]
[358919153,1745545416095,-1135.12,0.00049315,30]
[358919154,1745545416130,-500.0,0.00049315,30]
[358919155,1745545416167,-1135.12,0.00049315,30]
[358919156,1745545416204,-1135.12,0.00049315,30]
[358919157,1745545416241,-1135.12,0.00049315,30]
[358919158,1745545416277,-1135.12,0.00049315,30]
[358919159,1745545416316,-1135.12,0.00049315,30]
[358919160,1745545416356,-1135.12,0.00049315,30]
[358919161,1745545416397,-1135.12,0.00049315,30]
[358919162,1745545416438,-1135.12,0.00049315,30]
[358919163,1745545416479,-1135.12,0.00049315,30]
[358919164,1745545416517,-1135.12,0.00049315,30]
[358919165,1745545416556,-1135.12,0.00049315,30]
[358919166,1745545416596,-1135.12,0.00049315,30]
[358919167,1745545416637,-1135.12,0.00049315,30]
[358919168,1745545416677,-1135.12,0.00049315,30]
[358919169,1745545416715,-1135.12,0.00049315,30]
[358919170,1745545416753,-1135.12,0.00049315,30]
[358919171,1745545416792,-1135.12,0.00049315,30]
[358919172,1745545416829,-1135.12,0.00049315,30]
[358919173,1745545416865,-500.0,0.00049315,30]
[358919174,1745545416904,-1135.27602455,0.00049315,30]
[358919175,1745545416947,-2641.69,0.00049315,30]
[358919176,1745545416987,-500.0,0.00049315,30]
[358919177,1745545417026,-2881.29,0.00049315,30]
[358919178,1745545417064,-500.0,0.00049315,30]
[358919179,1745545417102,-500.0,0.00049315,30]
[358919180,1745545417145,-500.0,0.00049315,30]
[358919181,1745545417187,-809.25,0.00049315,30]
[358919182,1745545417223,-975.25,0.00049315,30]
[358919183,1745545417263,-10337.63,0.00049315,30]
[358919184,1745545417301,-3067.16,0.00049315,30]
[358919185,1745545417339,-1318.12,0.00049315,30]
[358919186,1745545417374,-507.43,0.00049315,30]
[358919187,1745545417411,-570.23,0.00049315,30]
[358919188,1745545417448,-627.41,0.00049315,30]
[358919189,1745545417484,-1000.0,0.00049315,30]
[358919190,1745545417519,-500.0,0.00049315,30]
[358919191,1745545417554,-500.0,0.00049315,30]
[358919192,1745545417588,-679.54,0.00049315,30]
[358919193,1745545417624,-1252.46,0.00049315,30]
[358919194,1745545417660,-500.0,0.00049315,30]
[358919195,1745545417697,-575.58,0.00049315,30]
[358919196,1745545417738,-2182.67,0.00049315,30]
[358919197,1745545417778,-521.29,0.00049315,30]
[358919198,1745545417817,-1867.96,0.00049315,30]
[358919199,1745545417857,-1074.64,0.00049315,30]
[358919200,1745545417899,-3545.51,0.00049315,30]
[358919201,1745545417939,-540.40466138,0.00049315,30]
[358919202,1745545417981,-728.08,0.00049315,30]
[358919203,1745545418023,-672.38,0.00049315,30]